fUST/lending_fUST_20250810
["ID","MTS","AMOUNT","RATE_DAILY","PERIOD"]
[378271653,1754808660693,-218.910698,0.00029884,15]
[378271654,1754808660702,-510.07270979,0.00029888,2]
[378271655,1754808660712,-1200.0,0.00029897,7]
[378271656,1754808660725,-568.68208278,0.00029909,2]
[378271657,1754808660734,-1000.0,0.00029911,2]
[378271658,1754808660744,-700.0,0.00029915,2]
[378271659,1754808660754,-1000.0,0.00029915,2]
[378271660,1754808660763,-1654.63,0.00029928,15]
[378271661,1754808660774,-1000.0,0.00029928,2]
[378271662,1754808660792,-1000.0,0.00029941,5]
[378271663,1754808660805,-204.95141306,0.00029945,30]
[378271664,1754808660814,-1000.0,0.00029954,2]
[378271665,1754808660825,-500.0,0.00029982,2]
[378271666,1754808660839,-9000.0,0.0003,30]
[378271667,1754808660849,-9209.44695749,0.0003,2]
[378271668,1754808660860,-1674.45381852,0.0003,30]
[378271669,1754808660869,-6077.12351538,0.0003,30]
[378271670,1754808660879,-28394.61607367,0.0003,10]
[378271671,1754808660888,-165.46,0.0003,5]
[378271672,1754808660897,-160.0,0.0003,7]
[378271673,1754808660907,-160.0,0.0003,10]
[378271674,1754808660916,-151.0,0.0003,7]
[378271675,1754808660927,-218.910698,0.0003,30]
[378271676,1754808660938,-218.910698,0.0003,10]
[378271677,1754808660947,-152.004343,0.0003,10]
[378271678,1754808660957,-12668.57659669,0.0003,10]
[378271679,1754808660967,-12668.57659669,0.0003,30]
[378271680,1754808660977,-8484.66298975,0.0003,15]
[378271681,1754808660986,-461.62346162,0.0003,10]
[378271682,1754808660997,-461.62346162,0.0003,30]
[378271683,1754808661006,-843.0869304,0.0003,10]
[378271684,1754808661015,-843.0869304,0.0003,30]
[378271685,1754808661025,-156.568908,0.0003,10]
[378271686,1754808661034,-215.44987349,0.0003,10]
[378271687,1754808661044,-215.44987349,0.0003,30]
[378271688,1754808661053,-231.96268195,0.0003,10]
[378271689,1754808661063,-231.96268195,0.0003,30]
[378271690,1754808661072,-4000.0,0.0003,4]
[378271691,1754808661081,-151.0,0.0003,14]
[378271692,1754808661090,-216.64838636,0.0003,10]
[378271693,1754808661100,-216.64838636,0.0003,30]
[378271694,1754808661110,-700.0,0.00030002,7]
[378271695,1754808661120,-500.0,0.00030002,7]
[378271696,1754808661129,-1000.0,0.00030005,7]
[378271697,1754808661139,-218.910698,0.00030008,15]
[378271698,1754808661149,-1000.0,0.00030014,7]
[378271699,1754808661158,-1654.63,0.00030028,15]
[378271700,1754808661167,-1000.0,0.00030028,7]
[378271701,1754808661177,-500.0,0.00030034,7]
[378271702,1754808661187,-1000.0,0.0003005,7]
[378271703,1754808661196,-1000.0,0.0003008,7]
[378271704,1754808661205,-1000.0,0.00030082,7]
[378271705,1754808661215,-204.95141306,0.00030082,30]
[378271706,1754808661224,-207.0,0.0003009,30]
[378271707,1754808661237,-1891.01172406,0.00030094,2]
[378271708,1754808661246,-796.49257378,0.00030102,2]
[378271709,1754808661256,-700.0,0.00030114,7]
[378271710,1754808661266,-1654.63,0.00030128,15]
[378271711,1754808661275,-10185.45131339,0.0003013,2]
[378271712,1754808661284,-218.910698,0.00030131,15]
[378271713,1754808661294,-1000.0,0.00030135,7]
[378271714,1754808661303,-6248.18,0.00030136,8]
[378271715,1754808661313,-8829.89104139,0.00030137,2]
[378271716,1754808661408,-1056.67422357,0.00030137,2]
[378271717,1754808661491,-155.6919122,0.0002134,2]
[378271718,1754808661502,-460.0,0.00021342,2]
[378271719,1754808661512,-460.0,0.00022437,2]
[378271720,1754808661522,-460.0,0.00022711,2]
[378271721,1754808661532,-312.16666667,0.000245,3]
[378271722,1754808661542,-312.16666667,0.000273,7]
[378271723,1754808661551,-312.16666667,0.0003,10]
[378271724,1754808661561,-312.16666667,0.0003,30]
[378271725,1754808661571,-32296.44602565,0.00030137,2]
[378271726,1754808661605,-16737.01606639,0.00030137,2]
[378271727,1754808661614,-749.3,0.00030137,7]
[378271728,1754808661624,-218.910698,0.00030183,30]
[378271729,1754808661634,-200.0,0.00030185,120]
[378271730,1754808661644,-200.0,0.00030187,120]
[378271731,1754808661653,-1000.0,0.00030191,7]
[378271732,1754808661663,-1891.01172406,0.00030194,2]
[378271733,1754808661675,-200.0,0.00030199,120]
[378271734,1754808661684,-964.46790365,0.000302,2]
[378271735,1754808661694,-1000.0,0.000302,6]
[378271736,1754808661703,-1000.0,0.00030206,7]
[378271737,1754808661713,-1000.0,0.0003021,7]
[378271738,1754808661723,-204.95141306,0.00030219,30]
[378271739,1754808661734,-200.0,0.00030221,120]
[378271740,1754808661743,-1654.63,0.00030228,15]
[378271741,1754808661755,-604.0150947,0.00030236,2]
[378271742,1754808661764,-218.910698,0.00030255,15]
[378271743,1754808661774,-700.0,0.00030269,7]
[378271744,1754808661783,-200.0,0.00030278,120]
[378271745,1754808661793,-1891.01172406,0.00030294,2]
[378271746,1754808661802,-700.0,0.00030305,7]
[378271747,1754808661813,-1000.0,0.00030315,7]
[378271748,1754808661822,-1000.0,0.00030323,7]
[378271749,1754808661831,-200.0,0.00030326,120]
[378271750,1754808661841,-1654.63,0.00030328,15]
[378271751,1754808661850,-917.42,0.00030337,30]
[378271752,1754808661860,-800.0,0.00030343,2]
[378271753,1754808661870,-200.0,0.00030351,120]
[378271754,1754808661879,-204.95141306,0.00030356,30]
[378271755,1754808661889,-218.910698,0.00030366,30]
[378271756,1754808661899,-218.910698,0.00030378,15]
[378271757,1754808661908,-1000.0,0.00030393,7]
[378271758,1754808661919,-1891.01172406,0.00030394,2]
[378271759,1754808661930,-1000.0,0.00030399,7]
[378271760,1754808661940,-3687.5,0.0003041,2]
[378271761,1754808661949,-600.91,0.0003041,5]
[378271762,1754808661959,-500.0,0.0003041,7]
[378271763,1754808661969,-200.0,0.00030413,120]
[378271764,1754808661978,-200.0,0.00030413,120]
[378271765,1754808661988,-2017.07155011,0.00030428,14]
[378271766,1754808661998,-1654.63,0.00030428,15]
[378271767,1754808662008,-251.15,0.00030438,120]
[378271768,1754808662018,-510.04,0.00030438,120]
[378271769,1754808662027,-311.6333881,0.00030452,30]
[378271770,1754808662038,-199.6826772,0.00030452,30]
[378271771,1754808662048,-402.2793781,0.00030452,30]
[378271772,1754808662058,-167.9969435,0.00030452,30]
[378271773,1754808662069,-200.0,0.00030458,120]
[378271774,1754808662079,-293.85068442,0.00030466,7]
[378271775,1754808662089,-1891.01172406,0.00030494,2]
[378271776,1754808662100,-150.0,0.000305,5]
[378271777,1754808662110,-1000.0,0.00030505,7]
[378271778,1754808662120,-204.95141306,0.00030521,30]
[378271779,1754808662129,-1000.0,0.00030525,7]
[378271780,1754808662139,-1654.63,0.00030528,15]
[378271781,1754808662149,-200.0,0.00030538,120]
[378271782,1754808662158,-1000.0,0.00030539,7]
[378271783,1754808662168,-500.0,0.00030541,120]
[378271784,1754808662180,-500.0,0.00030541,120]
[378271785,1754808662189,-500.0,0.00030541,120]
[378271786,1754808662199,-500.0,0.00030541,120]
[378271787,1754808662209,-500.0,0.00030541,120]
[378271788,1754808662218,-500.0,0.00030541,120]
[378271789,1754808662233,-500.0,0.00030541,120]
[378271790,1754808662244,-500.0,0.00030541,120]
[378271791,1754808662254,-500.0,0.00030541,120]
[378271792,1754808662263,-500.0,0.00030541,120]
[378271793,1754808662274,-500.0,0.00030541,120]
[378271794,1754808662283,-500.0,0.00030541,120]
[378271795,1754808662293,-500.0,0.00030541,120]
[378271796,1754808662380,-500.0,0.00030541,120]
[378271797,1754808662400,-500.0,0.00030541,120]
[378271798,1754808662410,-500.0,0.00030541,120]
[378271799,1754808662419,-500.0,0.00030541,120]
[378271800,1754808662430,-500.0,0.00030541,120]
[378271801,1754808662439,-500.0,0.00030541,120]
[378271802,1754808662449,-500.0,0.00030541,120]
[378271803,1754808662458,-500.0,0.00030541,120]
[378271804,1754808662468,-500.0,0.00030541,120]
[378271805,1754808662477,-500.0,0.00030541,120]
[378271806,1754808662486,-500.0,0.00030541,120]
[378271807,1754808662496,-500.0,0.00030541,120]
[378271808,1754808662505,-500.0,0.00030541,120]
[378271809,1754808662515,-500.0,0.00030541,120]
[378271810,1754808662524,-500.0,0.00030541,120]
[378271811,1754808662534,-500.0,0.00030541,120]
[378271812,1754808662543,-500.0,0.00030541,120]
[378271813,1754808662553,-500.0,0.00030541,120]
[378271814,1754808662563,-500.0,0.00030541,120]
[378271815,1754808662572,-500.0,0.00030541,120]
[378271816,1754808662582,-500.0,0.00030541,120]
[378271817,1754808662591,-500.0,0.00030541,120]
[378271818,1754808662601,-500.0,0.00030541,120]
[378271819,1754808662610,-500.0,0.00030541,120]
[378271820,1754808662620,-500.0,0.00030541,120]
[378271821,1754808662629,-500.0,0.00030541,120]
[378271822,1754808662639,-500.0,0.00030541,120]
[378271823,1754808662649,-500.0,0.00030541,120]
[378271824,1754808662658,-500.0,0.00030541,120]
[378271825,1754808662667,-500.0,0.00030541,120]
[378271826,1754808662679,-500.0,0.00030541,120]
[378271827,1754808662689,-500.0,0.00030541,120]
[378271828,1754808662698,-500.0,0.00030541,120]
[378271829,1754808662707,-500.0,0.00030541,120]
[378271830,1754808662717,-500.0,0.00030541,120]
[378271831,1754808662726,-500.0,0.00030541,120]
[378271832,1754808662736,-500.0,0.00030541,120]
[378271833,1754808662746,-500.0,0.00030541,120]
[378271834,1754808662755,-500.0,0.00030541,120]
[378271835,1754808662764,-500.0,0.00030541,120]
[378271836,1754808662774,-500.0,0.00030541,120]
[378271837,1754808662783,-500.0,0.00030541,120]
[378271838,1754808662793,-500.0,0.00030541,120]
[378271839,1754808662803,-439.28638509,0.00030541,120]
[378271840,1754808663637,10813.88145726,0.00031528,120]
[378271842,1754808670583,1875.2117842,0.000199,2]
[378271843,1754808671555,249.095922,0.00013699,2]
[378271844,1754808671762,249.095922,0.00020187,2]
[378271845,1754808672914,250.0,0.00031528,30]
[378271846,1754808673384,250.0,0.00031528,30]
[378271847,1754808674109,250.0,0.00031528,30]
[378271848,1754808674729,250.0,0.00031528,30]
[378271849,1754808675127,250.0,0.00031528,30]
[378271850,1754808675607,250.0,0.00031528,30]
[378271851,1754808676090,250.0,0.00031528,30]
[378271852,1754808676637,250.0,0.00031528,30]
[378271853,1754808677086,250.0,0.00031528,30]
[378271854,1754808677595,250.0,0.00031528,30]
[378271855,1754808677982,250.0,0.00031528,30]
[378271856,1754808678463,250.0,0.00031528,30]
[378271857,1754808698055,550.0,0.000273,120]
[378271858,1754808706849,425.5,0.00031528,60]
[378271859,1754808714082,541.0,0.00031528,60]
[378271860,1754808714424,541.0,0.00031528,60]
[378271861,1754808714807,541.0,0.00031528,60]
[378271862,1754808715197,541.0,0.00031528,60]
[378271863,1754808715615,543.0,0.00031528,60]
[378271864,1754808717887,414.83638082,0.0003,120]
[378271865,1754808740768,7682.08339345,0.00020403,2]
[378271866,1754808740793,17217.91660655,0.00020403,2]
[378271867,1754808753805,1000.0,0.00031528,30]
[378271868,1754808754240,1000.0,0.00031528,30]
[378271869,1754808754666,1000.0,0.00031528,30]
[378271870,1754808755358,1000.0,0.00031528,30]
[378271871,1754808755984,1000.0,0.00031528,30]
[378271872,1754808756259,1412.006735,0.00031528,30]
[378271873,1754808762757,276.55758721,0.0003,120]
[378271874,1754808768037,2000.0,0.00031528,30]
[378271875,1754808768537,2000.0,0.00031528,30]
[378271876,1754808769032,1035.599999,0.00031528,30]
[378271877,1754808771208,2000.0,0.00031528,30]
[378271878,1754808771688,2000.0,0.00031528,30]
[378271879,1754808772135,1035.599999,0.00031528,30]
[378271880,1754808779258,2264.17388723,0.00030136,120]
[378271881,1754808807752,184.37172481,0.0003,120]
[378271883,1754808851498,1812.70472463,0.000199,2]
[378271884,1754808852641,184.37172481,0.0003,120]
[378271885,1754808854248,1146.5064823,0.00026027,30]
[378271886,1754808869681,3653.0,0.00021963,120]
[378271887,1754808870156,3653.0,0.00021953,120]
[378271888,1754808870567,3653.0,0.00021943,120]
[378271889,1754808871090,3653.0,0.0002479,120]
[378271890,1754808871658,3653.0,0.0002478,120]
[378271891,1754808872531,3653.0,0.0002477,120]
[378271892,1754808873062,3653.0,0.00029489,120]
[378271893,1754808873680,3653.0,0.00029479,120]
[378271894,1754808882257,160.0,0.0002,3]
[378271895,1754808908825,547.0,0.00027673,120]
[378271896,1754808945520,2283.04603239,0.000222,69]
[378271897,1754808949859,1000.0,0.00030137,120]
[378271898,1754808950483,2283.04603237,0.00023694,75]
[378271899,1754808955485,2283.04603237,0.00026248,86]
[378271900,1754808970673,150.0,0.00031457,30]
[378271901,1754808978908,557.06908891,0.00027397,120]
[378271902,1754809000060,4000.0,0.000301,120]
[378271903,1754809025583,3326.140446,0.00027397,120]
[378271904,1754809037245,1752.28123378,0.000199,2]
[378271905,1754809043650,1000.0,0.00023,60]
[378271909,1754809082739,2764.94645606,0.00031457,120]
[378271910,1754809109865,2000.0,0.00020239,120]
[378271914,1754809186996,160.0,0.0002,3]
[378271915,1754809213461,478.0,0.000274,120]
[378271916,1754809229966,2652.0,0.0002191,120]
[378271917,1754809230402,2652.0,0.000219,120]
[378271918,1754809230878,2652.0,0.0002189,120]
[378271919,1754809231287,2652.0,0.0002479,120]
[378271920,1754809231745,2652.0,0.0002478,120]
[378271921,1754809232315,2652.0,0.0002477,120]
[378271922,1754809232798,2652.0,0.0002939,120]
[378271923,1754809233247,2652.0,0.0002938,120]
[378271924,1754809233862,730.0,0.0002191,120]
[378271925,1754809234317,730.0,0.000219,120]
[378271926,1754809234766,730.0,0.0002189,120]
[378271927,1754809235205,730.0,0.0002479,120]
[378271928,1754809235649,730.0,0.0002478,120]
[378271929,1754809236091,730.0,0.0002477,120]
[378271930,1754809236534,730.0,0.0002939,120]
[378271931,1754809237122,730.0,0.0002938,120]
[378271932,1754809239742,1693.67011287,0.000199,2]
[378271933,1754809267111,905.55186702,0.000199,2]
[378271934,1754809267194,905.55186702,0.000199,2]
[378271935,1754809300400,550.0,0.000273,120]
[378271937,1754809369509,2000.0,0.00031455,30]
[378271938,1754809369929,2000.0,0.00031455,30]
[378271939,1754809370404,1035.599999,0.00031455,30]
[378271940,1754809392910,3017.0,0.00021,7]
[378271941,1754809397465,1444.0,0.00029041,120]
[378271942,1754809410766,913.21841298,0.000222,69]
[378271943,1754809415673,913.21841294,0.00023687,75]
[378271944,1754809420209,1637.21444247,0.000199,2]
[378271945,1754809420677,913.21841294,0.00026243,86]
[378271946,1754809492082,160.0,0.0002,3]
[378271949,1754809509554,419.0,0.00026677,120]
[378271950,1754809510882,419.0,0.00029344,120]
[378271951,1754809568203,905.55186702,0.000199,2]
[378271952,1754809571232,452.77593351,0.000199,2]
[378271953,1754809572585,226.38796676,0.000199,2]
[378271954,1754809589404,150.5,0.0002191,120]
[378271955,1754809589859,150.5,0.000219,120]
[378271956,1754809590320,150.5,0.0002189,120]
[378271957,1754809590859,150.5,0.0002487,120]
[378271958,1754809591242,150.5,0.0002486,120]
[378271959,1754809591696,150.5,0.0002485,120]
[378271960,1754809592157,150.5,0.0002939,120]
[378271961,1754809593598,150.5,0.0002938,120]
[378271962,1754809607892,1540.32566434,0.000199,2]
[378271964,1754809635119,224.186329,0.00013699,2]
[378271965,1754809635367,224.186329,0.00020187,2]
[378271966,1754809731212,7004.69505603,0.00020238,2]
[378271967,1754809731234,17895.30494397,0.00020238,2]
[378271969,1754809795910,160.0,0.0002,3]
[378271970,1754809796268,160.0,0.0002,3]
[378271971,1754809804794,1489.40462518,0.000199,2]
[378271972,1754809808258,314.0,0.0002528,120]
[378271973,1754809809589,314.0,0.00027808,120]
[378272008,1754809832576,-300.0,0.0002123,2]
[378272009,1754809832586,-34.23632393,0.0002123,2]
[378272010,1754809832598,-1165.76367607,0.0002123,2]
[378272011,1754809832608,-673.89,0.00021231,3]
[378272012,1754809832618,-561.58,0.00021231,3]
[378272013,1754809832628,-280.79,0.00021231,3]
[378272015,1754809832638,-808.17632393,0.00021231,3]
[378272017,1754809832650,-34.21367607,0.00021231,3]
[378272019,1754809832660,-322.71,0.00021231,10]
[378272021,1754809832669,-615.38,0.00021231,10]
[378272023,1754809832679,-460.0,0.00021239,2]
[378272025,1754809832688,-705.29390618,0.00021239,2]
[378272027,1754809832700,-4247.65609382,0.00021239,2]
[378272029,1754809832709,-9.60071103,0.00021239,2]
[378272031,1754809832721,-450.39928897,0.00021239,2]
[378272032,1754809832735,-151.37476771,0.00021239,2]
[378272033,1754809832747,-308.62523229,0.00021239,2]
[378272034,1754809832757,-460.0,0.00021239,2]
[378272035,1754809832767,-179.67316507,0.00021239,2]
[378272036,1754809837172,-280.32683493,0.00021239,2]
[378272037,1754809837183,-460.0,0.00021239,2]
[378272038,1754809837193,-460.0,0.0002124,2]
[378272039,1754809837203,-460.0,0.0002124,2]
[378272041,1754809837212,-500.0,0.0002124,2]
[378272043,1754809837221,-460.0,0.0002124,2]
[378272045,1754809837231,-460.0,0.0002124,2]
[378272047,1754809837240,-460.0,0.0002124,2]
[378272049,1754809837250,-460.0,0.0002124,2]
[378272051,1754809837259,-460.0,0.0002124,2]
[378272053,1754809837271,-462.43664672,0.0002124,2]
[378272055,1754809837281,-460.0,0.0002124,2]
[378272058,1754809837291,-460.0,0.0002124,2]
[378272060,1754809837300,-460.0,0.0002124,2]
[378272061,1754809837310,-461.45498524,0.0002124,2]
[378272062,1754809837319,-461.53669344,0.0002124,2]
[378272063,1754809837329,-460.0,0.0002124,2]
[378272064,1754809837338,-460.0,0.0002124,2]
[378272065,1754809837348,-460.0,0.0002124,2]
[378272066,1754809837357,-460.0,0.0002124,2]
[378272067,1754809837366,-361.04747551,0.0002124,2]
[378272068,1754809837376,-460.0,0.0002124,2]
[378272069,1754809837386,-461.86883288,0.0002124,2]
[378272070,1754809837395,-460.0,0.0002124,2]
[378272071,1754809837404,-399.94938401,0.0002124,2]
[378272072,1754809837416,-60.05061599,0.0002124,2]
[378272073,1754809837426,-460.0,0.0002124,2]
[378272074,1754809837435,-65.6985263,0.0002124,2]
[378272078,1754809838293,-394.3014737,0.0002124,2]
[378272079,1754809838303,-82.7585263,0.0002124,2]
[378272080,1754809838315,-377.2414737,0.0002124,2]
[378272081,1754809838324,-460.0,0.0002124,2]
[378272082,1754809838334,-460.0,0.0002124,2]
[378272083,1754809838343,-334.68476254,0.0002124,2]
[378272084,1754809838355,-125.31523746,0.0002124,2]
[378272085,1754809838364,-460.0,0.0002124,2]
[378272086,1754809838373,-272.33412195,0.0002124,2]
[378272087,1754809838384,-188.04608377,0.0002124,2]
[378272088,1754809838393,-460.0,0.0002124,2]
[378272089,1754809838403,-460.0,0.0002124,2]
[378272090,1754809838412,-490.98499358,0.0002124,2]
[378272091,1754809838421,-460.0,0.0002124,2]
[378272092,1754809838430,-460.0,0.0002124,2]
[378272093,1754809838439,-460.0,0.0002124,2]
[378272094,1754809838449,-395.98632268,0.0002124,2]
[378272095,1754809838460,-64.01367732,0.0002124,2]
[378272096,1754809838469,-463.10192022,0.0002124,2]
[378272097,1754809838479,-460.0,0.0002124,2]
[378272098,1754809838488,-460.0,0.0002124,2]
[378272099,1754809838497,-483.21449003,0.0002124,2]
[378272100,1754809838507,-460.0,0.0002124,2]
[378272101,1754809838516,-460.0,0.0002124,2]
[378272102,1754809838525,-505.22786013,0.0002124,2]
[378272103,1754809838534,-460.0,0.0002124,2]
[378272104,1754809838544,-460.0,0.0002124,2]
[378272105,1754809838553,-460.0,0.0002124,2]
[378272106,1754809838562,-500.0,0.0002124,2]
[378272107,1754809838571,-500.0,0.0002124,2]
[378272108,1754809838580,-500.0,0.0002124,2]
[378272109,1754809838590,-460.0,0.0002124,2]
[378272110,1754809838599,-460.0,0.0002124,2]
[378272111,1754809838609,-460.0,0.0002124,2]
[378272112,1754809838618,-460.0,0.0002124,2]
[378272113,1754809838627,-460.0,0.0002124,2]
[378272114,1754809838637,-462.307271,0.0002124,2]
[378272115,1754809838648,-511.23871304,0.0002124,2]
[378272116,1754809838657,-460.0,0.0002124,2]
[378272117,1754809838666,-460.0,0.0002124,2]
[378272118,1754809838674,-462.63191555,0.0002124,2]
[378272119,1754809838682,-267.36643019,0.0002124,2]
[378272161,1754809840391,-210.65640508,0.0002124,2]
[378272162,1754809840401,-460.0,0.0002124,2]
[378272163,1754809840414,-460.0,0.0002124,2]
[378272164,1754809840423,-472.33495483,0.0002124,2]
[378272165,1754809840433,-460.0,0.0002124,2]
[378272166,1754809840442,-460.0,0.0002124,2]
[378272167,1754809840452,-460.0,0.0002124,2]
[378272168,1754809840462,-460.0,0.0002124,2]
[378272169,1754809840471,-601.22,0.0002124,2]
[378272170,1754809840481,-500.0,0.0002124,2]
[378272171,1754809840490,-524.70258536,0.0002124,2]
[378272172,1754809840500,-500.0,0.0002124,2]
[378272173,1754809840509,-623.15119609,0.0002124,2]
[378272174,1754809840518,-500.0,0.0002124,2]
[378272176,1754809840527,-262.2605525,0.0002124,2]
[378272177,1754809840536,-500.0,0.0002124,2]
[378272178,1754809840546,-500.0,0.0002124,2]
[378272179,1754809840555,-500.0,0.0002124,2]
[378272180,1754809840564,-500.0,0.0002124,2]
[378272181,1754809840573,-500.0,0.0002124,2]
[378272182,1754809840582,-500.0,0.0002124,2]
[378272183,1754809840592,-500.0,0.0002124,2]
[378272184,1754809840602,-500.0,0.0002124,2]
[378272185,1754809840622,-500.0,0.0002124,2]
[378272186,1754809840631,-383.28053104,0.0002124,2]
[378272187,1754809840644,-116.71946896,0.0002124,2]
[378272188,1754809840655,-500.0,0.0002124,2]
[378272189,1754809840666,-156.74143758,0.0002124,2]
[378272353,1754809843278,-512.82,0.00021231,10]
[378272354,1754809843288,-460.86591871,0.0002124,2]
[378272355,1754809843300,-460.0,0.0002124,2]
[378272356,1754809843311,-343.25856242,0.0002124,2]
[378272357,1754809843321,-500.0,0.0002124,2]
[378272358,1754809843331,-500.0,0.0002124,2]
[378272359,1754809843341,-12.08078156,0.0002124,2]
[378272360,1754809843353,-199.00517716,0.0002124,2]
[378272361,1754809843363,-500.0,0.0002124,2]
[378272362,1754809843373,-302.74245779,0.0002124,2]
[378272426,1754809876091,365.2873652,0.000222,69]
[378272427,1754809880887,365.28736517,0.00023694,75]
[378272428,1754809885909,365.28736517,0.00026248,86]
[378272429,1754809911933,500.0,0.00031456,120]
[378272430,1754809914037,500.0,0.00031456,120]
[378272431,1754809915564,500.0,0.00031456,120]
[378272432,1754809928933,500.0,0.00031456,120]
[378272433,1754809930692,500.0,0.00031456,120]
[378272434,1754809931998,500.0,0.00031456,120]
[378272435,1754809933011,500.0,0.00031456,120]
[378272436,1754809935127,500.0,0.00031456,120]
[378272437,1754809936311,500.0,0.00031456,120]
[378272438,1754809937203,500.0,0.00031456,120]
[378272439,1754809937568,180.74508,0.00020402,2]
[378272440,1754809937778,180.74508,0.00020402,41]
[378272441,1754809938204,180.74508,0.00020402,80]
[378272442,1754809938403,180.74508,0.00020402,119]
[378272443,1754809949106,262.76,0.0002191,120]
[378272444,1754809949584,531.0,0.0002191,120]
[378272445,1754809950235,531.0,0.000219,120]
[378272446,1754809950579,531.0,0.0002189,120]
[378272447,1754809951027,531.0,0.0002487,120]
[378272448,1754809951466,531.0,0.0002486,120]
[378272449,1754809951938,531.0,0.0002485,120]
[378272450,1754809952373,531.0,0.0002939,120]
[378272451,1754809952816,531.0,0.0002938,120]
[378272452,1754809954651,1000.0,0.00031456,30]
[378272453,1754809955050,1000.0,0.00031456,30]
[378272454,1754809955514,1000.0,0.00031456,30]
[378272455,1754809956051,1000.0,0.00031456,30]
[378272456,1754809956405,1000.0,0.00031456,30]
[378272457,1754809956846,1412.006735,0.00031456,30]
[378272458,1754809966578,153.4,0.00031456,30]
[378272459,1754809970243,500.0,0.00031456,120]
[378272460,1754809971915,500.0,0.00031456,120]
[378272461,1754809973082,500.0,0.00031456,120]
[378272462,1754809974324,500.0,0.00031456,120]
[378272463,1754809975571,500.0,0.00031456,120]
[378272464,1754809977158,500.0,0.00031456,120]
[378272465,1754809978659,500.0,0.00031456,120]
[378272466,1754809979928,500.0,0.00031456,120]
[378272467,1754809981321,500.0,0.00031456,120]
[378272468,1754809982515,500.0,0.00031456,120]
[378272469,1754809983925,500.0,0.00031456,120]
[378272470,1754809985135,500.0,0.00031456,120]
[378272471,1754809986532,500.0,0.00031456,120]
[378272472,1754809987723,500.0,0.00031456,120]
[378272473,1754809989372,2494.605334,0.00027397,120]
[378272474,1754810004859,1439.73432644,0.000199,2]
[378272475,1754810028565,703.0,0.00031456,120]
[378272476,1754810063884,3000.0,0.00031456,120]
[378272477,1754810099900,160.0,0.0002,3]
[378272478,1754810108200,235.0,0.00026768,120]
[378272479,1754810109469,235.0,0.00029445,120]
[378272482,1754810183632,783.64179234,0.00029041,120]
[378272484,1754810212818,1391.74466151,0.000199,2]
[378272485,1754810241299,5999.57942979,0.00031454,30]
[378272486,1754810244131,2000.0,0.00020277,120]
[378272487,1754810244204,387.72,0.00031454,120]
[378272488,1754810344427,182.6436826,0.000222,69]
[378272489,1754810349531,182.64368258,0.00024478,79]
[378272490,1754810354448,182.64368258,0.00027917,94]
[378272492,1754810406667,1345.34930635,0.000199,2]
[378272493,1754810408206,177.0,0.00027579,120]
[378272494,1754810409308,1087.2,0.000301,120]